bitfinex-derivatives/quotes_SOLF0:USTF0_20251108
["timestamp","ask_amount","ask_price","bid_price","bid_amount"]
[1762602031539,0.0463583,159.56,159.53,0.04024553]
[1762602031939,0.0463583,159.56,159.53,3.21024553]
[1762602033048,0.0463583,159.56,159.54,8.8142]
[1762602033440,0.0463583,159.56,159.55,3.17]
[1762602040456,0.0463583,159.56,159.53,0.04024553]
[1762602040457,3.0763583,159.56,159.53,0.04024553]
[1762602040752,0.0463583,159.56,159.53,3.21024553]
[1762602041150,0.0463583,159.56,159.53,8.85474553]
[1762602041463,0.0463583,159.56,159.54,3.17]
[1762602044658,3.0163583,159.56,159.53,5.68474553]
[1762602045259,0.0463583,159.56,159.53,8.84474553]
[1762602045460,3.0163583,159.56,159.53,0.04024553]
[1762602046752,3.0163583,159.56,159.53,3.20024553]
[1762602048261,0.0463583,159.56,159.53,3.20024553]
[1762602048561,0.0463583,159.56,159.54,3.16]
[1762602048946,0.0463583,159.56,159.54,8.8042]
[1762602050662,0.0463583,159.56,159.55,3.16]
[1762602058871,69.00624436,159.62,159.57,3.16]
[1762602059862,3.01511112,159.61,159.58,3.20802878]
[1762602060665,3.01511112,159.61,159.58,0.04802878]
[1762602061869,2.03624436,159.6,159.58,0.04802878]
[1762602062068,5.03624436,159.6,159.58,0.04802878]
[1762602063176,3.0,159.59,159.58,0.04802878]
[1762602063371,3.0,159.59,159.52,3.2]
[1762602063571,5.03624436,159.56,159.47,3.2]
[1762602063773,5.03624436,159.56,159.5,5.6456]
[1762602063978,5.03624436,159.56,159.5,3.2]
[1762602064383,0.0478303,159.55,159.52,3.2]
[1762602067982,3.0478303,159.55,159.51,0.04585887]
[1762602068485,5.03624436,159.54,159.51,0.04585887]
[1762602068690,3.0,159.53,159.51,0.04585887]
[1762602069893,5.03624436,159.54,159.51,3.24585887]
[1762602076795,5.03624436,159.54,159.51,8.89115887]
[1762602076986,0.0478303,159.55,159.52,3.2]
[1762602078098,0.0478303,159.55,159.54,3.2]
[1762602079090,8.75047998,159.63,159.57,3.2]
[1762602079291,9.56331769,159.62,159.57,3.2]
[1762602079488,3.0,159.59,159.49,2.03624436]
[1762602079692,3.0,159.59,159.54,3.2]
[1762602080200,0.0452551,159.58,159.55,3.24136631]
[1762602080501,0.03960198,159.58,159.55,3.24055115]
[1762602081298,0.03960198,159.58,159.57,8.8431]
[1762602081804,2.03624436,159.64,159.62,3.2]
[1762602082103,2.03624436,159.66,159.62,3.2]
[1762602082692,2.03624436,159.66,159.63,8.8409]
[1762602082894,2.07921974,159.66,159.63,8.88582965]
[1762602083297,0.04297538,159.66,159.64,8.8406]
[1762602083498,0.04297538,159.66,159.65,3.2]
[1762602085398,5.03624436,159.71,159.66,3.2]
[1762602086004,5.03624436,159.71,159.68,3.2]
[1762602086398,5.08035809,159.71,159.68,3.2421815]
[1762602087808,5.08035809,159.71,159.68,0.0421815]
[1762602088011,3.0,159.68,159.63,5.641]
[1762602088304,3.0,159.67,159.63,3.2]
[1762602089101,3.0426368,159.67,159.63,3.23951028]
[1762602089711,2.03624436,159.66,159.63,3.23951028]
[1762602090410,5.03624436,159.66,159.63,3.23951028]
[1762602091615,2.03624436,159.66,159.63,5.68041028]
[1762602091810,2.03624436,159.66,159.64,3.04]
[1762602093411,0.0426368,159.67,159.64,3.04]
[1762602094320,3.1226368,159.67,159.64,8.6806]
[1762602094610,0.0426368,159.67,159.65,3.04]
[1762602095209,3.1226368,159.67,159.63,0.03951028]
[1762602095416,2.03624436,159.66,159.63,3.07951028]
[1762602096020,5.11624436,159.66,159.63,0.03951028]
[1762602096514,5.11624436,159.66,159.63,3.07951028]
[1762602098226,3.08,159.65,159.63,0.03951028]
[1762602099221,2.03624436,159.66,159.63,8.72051028]
[1762602099522,2.07888116,159.67,159.64,3.04]
[1762602100018,2.07888116,159.67,159.64,8.6806]
[1762602100209,2.07888116,159.67,159.65,3.04]
[1762602100522,0.0426368,159.67,159.66,3.04]
[1762602100723,0.0426368,159.67,159.65,8.6803]
[1762602103021,0.0426368,159.67,159.66,2.89]
[1762602111933,3.0926368,159.67,159.63,0.03951028]
[1762602112133,3.05,159.63,159.52,2.89]
[1762602112333,77.13631006,159.66,159.48,2.89]
[1762602112334,6.22775775,159.55,159.48,2.89]
[1762602112748,3.05,159.55,159.48,2.89]
[1762602113049,0.04010393,159.53,159.51,2.89]
[1762602113339,0.04022615,159.54,159.51,2.89]
[1762602116040,3.09022615,159.54,159.51,2.89]
[1762602119745,3.09022615,159.54,159.5,0.0415523]
[1762602119946,3.09022615,159.54,159.5,2.9315523]
[1762602120648,3.09022615,159.54,159.5,0.0415523]
[1762602120845,3.05,159.52,159.5,0.0415523]
[1762602122955,0.04022615,159.54,159.5,3.2115523]
[1762602123141,3.24022615,159.54,159.5,3.2115523]
[1762602126350,3.2,159.52,159.36,3.17]
[1762602126651,3.2,159.48,159.36,3.17]
[1762602126849,3.2,159.46,159.37,8.8201]
[1762602127050,3.2,159.44,159.37,3.17]
[1762602127250,3.2,159.41,159.31,3.17]
[1762602127461,3.2,159.41,159.39,0.0414597]
[1762602127657,3.2,159.41,159.26,18.75420217]
[1762602127658,3.2,159.41,159.38,0.04395267]
[1762602127846,0.0451894,159.41,159.38,3.21216101]
[1762602129552,0.0451894,159.41,159.4,3.17]
[1762602130355,0.0451894,159.41,159.4,4.43]
[1762602130556,0.0451894,159.41,159.4,3.17]
[1762602131364,0.0451894,159.41,159.39,3.17]
[1762602132658,0.0451894,159.41,159.39,8.8194]
[1762602132855,0.0451894,159.41,159.4,3.17]
[1762602133250,0.0451894,159.41,159.38,0.04216101]
[1762602133457,0.0451894,159.41,159.39,3.17]
[1762602134160,0.0451894,159.41,159.39,8.8194]
[1762602134957,0.0451894,159.41,159.39,3.17]
[1762602136760,3.2451894,159.41,159.38,0.04216101]
[1762602136964,3.2,159.4,159.32,3.17]
[1762602138053,3.2,159.37,159.34,0.04004104]
[1762602138255,0.04623522,159.37,159.34,3.21347191]
[1762602138658,3.24623522,159.37,159.34,0.04347191]
[1762602138864,3.24623522,159.37,159.29,3.17]
[1762602139063,3.2,159.37,159.29,3.17]
[1762602139468,64.0,159.43,159.29,3.17]
[1762602139666,3.2,159.42,159.29,3.17]
[1762602139864,0.04739108,159.38,159.29,3.17]
[1762602140170,0.04739108,159.38,159.31,3.17]
[1762602140361,0.04526015,159.36,159.31,3.17]
[1762602140561,0.04526015,159.36,159.32,3.17]
[1762602141471,0.04526015,159.36,159.29,3.17]
[1762602141472,3.24526015,159.36,159.29,3.17]
[1762602141661,0.04217621,159.34,159.29,3.17]
[1762602141866,0.04217621,159.34,159.33,3.17]
[1762602143565,67.2,159.43,159.36,8.8207]
[1762602143773,3.2,159.43,159.36,8.8207]
[1762602144468,0.0466142,159.41,159.38,0.0454871]
[1762602144773,0.0466142,159.41,159.38,3.2154871]
[1762602144967,0.0466142,159.41,159.4,3.17]
[1762602146775,3.2,159.49,159.4,3.17]
[1762602147570,0.04216784,159.46,159.43,0.04191942]
[1762602147770,3.24216784,159.46,159.43,0.04191942]
[1762602150277,0.04216784,159.46,159.43,3.21191942]
[1762602150675,0.04216784,159.46,159.44,5.6477]
[1762602150879,3.2,159.53,159.45,3.17]
[1762602151272,3.2,159.53,159.47,8.7766]
[1762602151481,3.2,159.53,159.47,3.13]
[1762602151872,3.14,159.56,159.49,8.7759]
[1762602152068,3.14,159.56,159.5,3.13]
[1762602152276,0.04074396,159.55,159.52,3.13]
[1762602152577,0.03958712,159.55,159.52,3.17596727]
[1762602152979,3.17958712,159.55,159.52,0.04596727]
[1762602153180,3.17958712,159.55,159.52,3.17596727]
[1762602153181,0.03958712,159.55,159.52,3.17596727]
[1762602154696,3.17958712,159.55,159.52,0.04596727]
[1762602157698,0.03958712,159.55,159.52,3.17596727]
[1762602158095,3.17958712,159.55,159.52,0.04596727]
[1762602160303,0.03958712,159.55,159.52,3.17596727]
[1762602160599,3.14,159.54,159.4,3.13]
[1762602160802,3.14,159.5,159.42,5.6484]
[1762602161394,3.14,159.5,159.32,49.9638]
[1762602161395,4.72044082,159.49,159.24,11.3092]
[1762602161597,3.14,159.47,159.34,3.13]
[1762602161897,0.04356157,159.42,159.39,0.04472191]
[1762602162203,3.18146587,159.42,159.39,0.0396463]
[1762602163297,0.04146587,159.42,159.39,3.1196463]
[1762602166305,2.88,159.49,159.41,8.7286]
[1762602167299,0.04298024,159.47,159.43,3.12179685]
[1762602168006,2.92298024,159.47,159.43,0.04179685]
[1762602170100,8.56998024,159.47,159.43,0.04179685]
[1762602170405,2.88,159.46,159.43,0.04179685]
[1762602173411,8.5273,159.46,159.43,0.04179685]
[1762602173604,0.04298024,159.47,159.43,0.04179685]
[1762602173605,2.88,159.45,159.43,0.04179685]
[1762602176103,2.92298024,159.47,159.43,3.12179685]
[1762602177210,0.04298024,159.47,159.43,3.12179685]
[1762602178513,2.92298024,159.47,159.43,3.12179685]
[1762602181114,2.92298024,159.47,159.43,0.04179685]
[1762602182111,3.13,159.45,159.43,0.04179685]
[1762602183009,0.04298024,159.47,159.43,0.04179685]
[1762602183216,3.17298024,159.47,159.43,3.16179685]
[1762602183611,0.04298024,159.47,159.43,3.16179685]
[1762602184208,0.04298024,159.47,159.43,8.80979685]
[1762602184403,0.04298024,159.47,159.44,3.12]
[1762602186912,3.17298024,159.47,159.44,3.12]
[1762602187113,3.17298024,159.47,159.43,3.16179685]
[1762602187311,0.04298024,159.47,159.43,3.16179685]
[1762602187913,4.42328765,159.53,159.43,3.16179685]
[1762602187914,3.13,159.53,159.43,3.16179685]
[1762602188107,3.13,159.56,159.44,3.12]
[1762602188314,3.13,159.56,159.5,3.12]
[1762602188520,3.13,159.56,159.49,5.6459]
[1762602188712,3.13,159.56,159.47,3.12]
[1762602189217,3.17592005,159.53,159.5,0.03965251]
[1762602189414,3.17620102,159.53,159.5,0.04254765]
[1762602189613,0.04620102,159.53,159.5,3.16254765]
[1762602189819,3.13,159.59,159.5,3.16254765]
[1762602190016,3.13,159.59,159.51,3.12]
[1762602190619,8.7716,159.62,159.54,3.12]
[1762602190819,3.17253612,159.6,159.56,3.16426321]
[1762602191010,3.17253612,159.6,159.56,0.04426321]
[1762602191207,3.13,159.59,159.56,0.04426321]
[1762602194322,0.04253612,159.6,159.57,3.12]
[1762602194508,3.17253612,159.6,159.56,0.04426321]
[1762602198223,5.68483612,159.6,159.56,3.16426321]
[1762602198418,3.17253612,159.6,159.56,3.16426321]
[1762602200018,0.04253612,159.6,159.56,3.16426321]
[1762602200218,3.17253612,159.6,159.56,0.04426321]
[1762602200822,3.17253612,159.6,159.56,3.16426321]
[1762602201328,0.04253612,159.6,159.56,3.16426321]
[1762602202827,3.13,159.66,159.59,3.12]
[1762602203827,3.17211922,159.64,159.61,0.04080024]
[1762602205841,3.13,159.61,159.52,3.12]
[1762602206227,3.13,159.61,159.53,8.7645]
[1762602206535,3.13,159.61,159.54,3.12]
[1762602206830,0.04656209,159.59,159.55,3.16760459]
[1762602207028,0.04287357,159.59,159.55,3.16760459]
[1762602207629,3.17287357,159.59,159.55,0.04760459]
[1762602209424,3.17287357,159.59,159.55,3.16760459]
[1762602214939,3.17287357,159.59,159.55,0.04760459]
[1762602215127,2.95,159.58,159.55,0.04760459]
[1762602216441,2.95,159.55,159.48,2.97]
[1762602216940,2.95,159.55,159.48,8.6163]
[1762602217443,2.95,159.55,159.5,0.04733891]
[1762602217743,5.19472542,159.56,159.5,0.04733891]
[1762602217744,2.98989692,159.53,159.5,0.04733891]
[1762602220443,2.03803576,159.52,159.5,0.04733891]
[1762602221343,0.03989692,159.53,159.51,2.97]
[1762602221746,2.07793268,159.53,159.51,2.97]
[1762602222444,0.03989692,159.53,159.51,2.97]
[1762602223446,64.0,159.58,159.51,2.97]
[1762602223746,6.25368863,159.59,159.54,3.13]
[1762602224137,11.89548863,159.62,159.55,3.13]
[1762602224337,8.7118,159.62,159.55,3.13]
[1762602224543,3.11241131,159.6,159.57,0.04787818]
[1762602225347,3.11241131,159.6,159.57,3.17787818]
[1762602226743,3.11241131,159.6,159.57,0.04787818]
[1762602228552,3.07,159.58,159.57,0.04787818]
[1762602229255,3.11241131,159.6,159.57,0.04787818]
[1762602229646,0.04241131,159.6,159.57,3.17787818]
[1762602231151,0.04241131,159.6,159.59,3.13]
[1762602231848,0.04241131,159.6,159.58,8.7727]
[1762602233257,0.04241131,159.6,159.59,3.13]
[1762602233461,0.04241131,159.6,159.57,3.17787818]
[1762602234959,0.04241131,159.6,159.57,8.82097818]
[1762602235154,0.04241131,159.6,159.58,3.13]
[1762602236462,0.04241131,159.6,159.57,3.17787818]
[1762602237156,3.11241131,159.6,159.57,0.04787818]
[1762602237959,0.04241131,159.6,159.58,3.13]
[1762602239263,3.11241131,159.6,159.57,0.04787818]
[1762602239766,8.75471131,159.6,159.57,0.04787818]
[1762602239955,3.07,159.59,159.57,0.04787818]
[1762602242362,0.04241131,159.6,159.57,2.94787818]
[1762602243962,0.04241131,159.6,159.57,8.59107818]
[1762602244269,0.04241131,159.6,159.58,2.9]
[1762602244967,0.04241131,159.6,159.58,8.5428]
[1762602245263,0.04241131,159.6,159.59,2.9]
[1762602246074,2.99241131,159.6,159.57,0.04787818]
[1762602246269,6.1305221,159.59,159.57,0.04787818]
[1762602246465,2.95,159.58,159.57,0.04787818]
[1762602246662,0.04241131,159.6,159.57,0.04787818]
[1762602246976,2.99241131,159.6,159.57,0.04787818]
[1762602247164,6.1305221,159.59,159.57,0.04787818]
[1762602249670,0.04241131,159.6,159.57,2.94787818]
[1762602251071,0.04241131,159.6,159.59,2.9]
[1762602251263,0.04241131,159.6,159.57,0.04787818]
[1762602251469,2.99241131,159.6,159.57,0.04787818]
[1762602251663,2.99241131,159.6,159.57,2.94787818]
[1762602252068,2.99241131,159.6,159.57,0.04787818]
[1762602252771,2.99241131,159.6,159.57,2.94787818]
[1762602253775,0.04241131,159.6,159.57,2.94787818]
[1762602255378,2.99241131,159.6,159.57,0.04787818]
[1762602255577,2.99241131,159.6,159.57,2.94787818]
[1762602256982,0.04241131,159.6,159.57,2.94787818]
[1762602257982,2.99241131,159.6,159.57,0.04787818]
[1762602258173,2.99241131,159.6,159.57,2.94787818]
[1762602260083,0.04241131,159.6,159.57,8.59097818]
[1762602261282,2.99241131,159.6,159.57,0.04787818]
[1762602261580,2.99241131,159.6,159.42,18.39655983]
[1762602261581,2.95,159.57,159.42,18.39655983]
[1762602261781,2.95,159.54,159.47,2.9]
[1762602262473,0.04554961,159.52,159.49,2.94678557]
[1762602263281,2.99554961,159.52,159.49,2.94678557]
[1762602263478,0.04554961,159.52,159.49,2.94678557]
[1762602268777,0.04554961,159.52,159.51,2.9]
[1762602271086,3.19,159.6,159.53,2.9]
[1762602271680,3.19,159.6,159.53,8.5445]
[1762602272189,3.19,159.57,159.55,0.04439702]
[1762602273791,0.03967301,159.58,159.55,3.16439702]
[1762602274476,0.03967301,159.58,159.55,8.80809702]
[1762602274680,3.22967301,159.58,159.55,0.04439702]
[1762602279390,3.19,159.56,159.55,0.04439702]
[1762602284098,6.3705221,159.56,159.55,0.04439702]
[1762602284303,2.94,159.55,159.49,8.7659]
[1762602284496,2.94,159.53,159.49,8.7659]
[1762602285197,2.98474267,159.53,159.49,8.81213914]
[1762602288401,2.98474267,159.53,159.5,3.2]
[1762602289002,0.04474267,159.53,159.51,3.2]
[1762602289497,0.04474267,159.53,159.51,8.8452]
[1762602289701,0.04474267,159.53,159.52,3.2]
[1762602290894,2.94,159.59,159.53,8.8444]
[1762602291104,2.94,159.57,159.53,3.2]
[1762602291404,2.94,159.57,159.54,3.2]
[1762602291902,2.98522843,159.57,159.54,3.23963007]
[1762602293003,2.98522843,159.57,159.54,0.03963007]
[1762602293698,2.94,159.56,159.54,0.03963007]
[1762602299104,4.9777003,159.55,159.54,0.03963007]
[1762602299806,2.94,159.54,159.46,3.2]
[1762602300109,4.9777003,159.5,159.42,3.2]
[1762602300406,2.0377003,159.48,159.42,3.2]
[1762602300704,2.97961457,159.47,159.43,8.8903503]
[1762602300903,2.98024019,159.47,159.44,3.2]
[1762602302698,0.04024019,159.47,159.44,3.2]
[1762602303303,0.04024019,159.47,159.43,0.04239359]
[1762602303304,0.04024019,159.47,159.46,3.08]
[1762602303510,0.04024019,159.47,159.44,3.08]
[1762602304207,0.04024019,159.47,159.45,3.08]
[1762602304994,0.04024019,159.47,159.45,8.7273]
[1762602305704,0.04024019,159.47,159.46,3.08]
[1762602305908,0.04024019,159.47,159.45,8.7273]
[1762602307997,3.09024019,159.47,159.43,8.77049359]
[1762602308197,3.09024019,159.47,159.43,3.12239359]
[1762602308399,3.05,159.45,159.43,0.04239359]
[1762602308811,5.0877003,159.44,159.43,0.04239359]
[1762602309013,3.05,159.43,159.37,3.08]
[1762602309309,5.0877003,159.42,159.37,3.08]
[1762602309508,3.05,159.41,159.38,3.08]
[1762602309710,3.05,159.41,159.34,3.08]
[1762602309905,3.05,159.41,159.36,3.12780758]
[1762602309906,0.04456094,159.39,159.36,3.12780758]
[1762602310106,3.09456094,159.39,159.36,3.12780758]
[1762602310315,3.09456094,159.39,159.36,0.04780758]
[1762602311608,3.09456094,159.39,159.37,3.08]
[1762602311609,0.04456094,159.39,159.37,3.08]
[1762602312911,0.04456094,159.39,159.37,8.7301]
[1762602313112,0.04456094,159.39,159.38,3.08]
[1762602313511,0.04456094,159.39,159.36,3.12780758]
[1762602314916,0.04456094,159.39,159.36,5.16550788]
[1762602315120,0.04456094,159.39,159.37,3.08]
[1762602315614,3.09456094,159.39,159.36,0.04780758]
[1762602317120,5.13226124,159.39,159.36,0.04780758]
[1762602317318,3.05,159.38,159.36,0.04780758]
[1762602317517,3.05,159.38,159.31,3.08]
[1762602318112,3.05,159.38,159.31,8.7322]
[1762602318312,3.05,159.38,159.31,3.08]
[1762602318620,3.05,159.38,159.33,0.0398654]
[1762602318823,3.05,159.38,159.33,3.1198654]
[1762602319320,3.05,159.38,159.33,5.6913654]
[1762602320924,0.04456094,159.39,159.35,3.08]
[1762602321621,0.04456094,159.39,159.38,3.08]
[1762602329133,5.0877003,159.47,159.4,3.08]
[1762602329431,3.05,159.46,159.4,3.08]
[1762602330024,3.09389981,159.45,159.41,0.04171384]
[1762602331822,2.93,159.44,159.41,0.04171384]
[1762602332632,2.93,159.43,159.41,0.04171384]
[1762602333325,2.93,159.42,159.41,0.04171384]
[1762602335328,2.93,159.42,159.34,3.17]
[1762602335629,2.93,159.41,159.34,3.17]
[1762602336132,2.93,159.41,159.36,5.6504]
[1762602336331,2.97806028,159.4,159.37,0.04385869]
[1762602340038,0.04806028,159.4,159.37,8.86415869]
[1762602340529,2.97806028,159.4,159.37,8.86415869]
[1762602340730,0.04806028,159.4,159.37,8.86415869]
[1762602340940,0.04806028,159.4,159.39,3.17]
[1762602341346,0.04806028,159.4,159.38,8.8199]
[1762602342746,0.04806028,159.4,159.39,2.94]
[1762602344143,0.04806028,159.4,159.38,8.5899]
[1762602344550,3.12806028,159.4,159.37,0.04385869]
[1762602345644,3.12806028,159.4,159.38,2.94]
[1762602345645,0.04806028,159.4,159.38,2.94]
[1762602347040,0.04806028,159.4,159.39,2.94]
[1762602352548,0.04806028,159.4,159.37,2.98385869]
[1762602353747,3.12806028,159.4,159.37,0.04385869]
[1762602354155,3.12806028,159.4,159.37,2.98385869]
[1762602354748,0.04806028,159.4,159.38,2.94]
[1762602355757,0.04806028,159.4,159.38,8.5898]
[1762602356054,0.04806028,159.4,159.39,2.94]
[1762602358554,6.26813223,159.46,159.37,0.04385869]
[1762602358555,3.08,159.46,159.42,2.94]
[1762602358753,11.91443223,159.49,159.42,2.94]
[1762602359055,12.32508235,159.48,159.42,2.94]
[1762602359352,12.32508235,159.47,159.43,2.94]
[1762602359551,3.12583332,159.47,159.43,2.98329925]
[1762602360155,0.04583332,159.47,159.43,2.98329925]
[1762602360353,0.04583332,159.47,159.44,2.94]
[1762602361047,0.04583332,159.47,159.44,8.5877]
[1762602361250,0.04583332,159.47,159.45,3.03]
[1762602361655,64.0,159.51,159.48,3.03]
[1762602361850,3.1,159.53,159.48,3.03]
[1762602362056,69.73957782,159.57,159.48,3.03]
[1762602362057,5.6437,159.56,159.48,3.03]
[1762602362263,9.23632819,159.55,159.48,3.03]
[1762602362461,5.6437,159.56,159.48,3.03]
[1762602362663,0.0433795,159.53,159.51,3.03]
[1762602363258,0.0433795,159.53,159.51,8.6752]
[1762602363463,0.0433795,159.53,159.52,3.03]
[1762602364552,3.1,159.6,159.52,3.03]
[1762602365165,3.1,159.6,159.54,8.6741]
[1762602365358,3.1,159.6,159.55,3.03]
[1762602365759,0.04410248,159.59,159.56,3.07308386]
[1762602368062,0.04410248,159.59,159.56,8.71648386]
[1762602368262,0.04410248,159.59,159.57,3.03]
[1762602368671,0.04410248,159.59,159.57,8.673]
[1762602368874,0.04410248,159.59,159.58,3.03]
[1762602369974,3.1,159.66,159.6,3.03]
[1762602371078,3.14329527,159.65,159.61,0.04738162]
[1762602371570,3.14329527,159.65,159.61,3.07738162]
[1762602373483,0.04329527,159.65,159.61,3.07738162]
[1762602374996,0.04329527,159.65,159.61,8.71898162]
[1762602375392,0.04329527,159.65,159.62,3.03]
[1762602375592,0.04329527,159.65,159.61,3.07738162]
[1762602375593,3.14329527,159.65,159.61,3.07738162]
[1762602376789,3.14329527,159.65,159.61,0.04738162]
[1762602377589,3.18813223,159.64,159.61,0.04738162]
[1762602377789,3.1,159.63,159.61,0.04738162]
[1762602378793,8.7413,159.63,159.61,0.04738162]
[1762602379993,3.1,159.63,159.61,0.04738162]
[1762602380984,3.14329527,159.65,159.61,3.07738162]
[1762602381189,0.04329527,159.65,159.61,3.07738162]
[1762602383001,3.14329527,159.65,159.61,3.07738162]
[1762602383199,0.04329527,159.65,159.61,3.07738162]
[1762602383891,0.04329527,159.65,159.64,3.03]
[1762602385001,0.04329527,159.65,159.63,8.671]
[1762602385300,0.04329527,159.65,159.64,3.03]
[1762602385687,0.04329527,159.65,159.61,0.04738162]
[1762602385688,70.28813223,159.74,159.66,3.03]
[1762602385995,6.28813223,159.74,159.66,3.03]
[1762602386195,3.1,159.78,159.66,3.03]
[1762602386599,3.1,159.78,159.71,8.6679]
[1762602386799,0.04217429,159.74,159.72,3.03]
[1762602387191,0.04217429,159.74,159.72,8.6678]
[1762602387490,0.04217429,159.74,159.73,3.03]
[1762602387692,0.04217429,159.74,159.71,8.6681]
[1762602387891,0.04217429,159.74,159.72,3.03]
[1762602388292,0.04217429,159.74,159.72,8.6677]
[1762602388494,0.04217429,159.74,159.73,3.03]
[1762602389596,6.28813223,159.81,159.74,8.6671]
[1762602390097,3.1,159.8,159.74,3.03]
[1762602390300,3.1,159.74,159.59,3.03]
[1762602390605,0.04597293,159.68,159.66,3.03]
[1762602390807,0.0482218,159.69,159.67,3.03]
[1762602391105,3.1,159.74,159.67,3.03]
[1762602391302,8.82443223,159.77,159.69,5.6388]
[1762602391606,3.18813223,159.77,159.7,3.16]
[1762602391797,6.07813223,159.77,159.7,3.16]
[1762602391998,0.04685779,159.75,159.72,0.04818824]
[1762602394703,0.04685779,159.75,159.72,3.20818824]
[1762602395006,0.04685779,159.75,159.73,3.16]
[1762602395505,0.04685779,159.75,159.74,3.16]
[1762602395803,2.89,159.83,159.76,3.16]
[1762602396398,2.89,159.82,159.76,8.7963]
[1762602396798,2.9347483,159.81,159.77,0.04227603]
[1762602397409,6.12288053,159.81,159.77,0.04227603]
[1762602397708,2.89,159.8,159.77,0.04227603]
[1762602400304,0.0447483,159.81,159.78,3.16]
[1762602400802,0.0447483,159.81,159.77,0.04227603]
[1762602400803,2.9347483,159.81,159.77,5.67837603]
[1762602401109,2.9347483,159.81,159.77,8.83837603]
[1762602402000,2.9347483,159.81,159.77,0.04227603]
[1762602405311,3.2,159.79,159.77,0.04227603]
[1762602405903,3.2,159.77,159.71,3.0]
[1762602406607,3.2,159.77,159.71,5.03177483]
[1762602406808,3.24548915,159.76,159.72,3.04378044]
[1762602407999,3.24548915,159.76,159.72,8.68158044]
[1762602408607,0.04548915,159.76,159.73,3.0]
[1762602408905,0.04548915,159.76,159.73,5.03177483]
[1762602409301,3.24548915,159.76,159.72,0.04378044]
[1762602409502,5.27726398,159.76,159.72,0.04378044]
[1762602409697,3.2,159.75,159.72,0.04378044]
[1762602410205,3.2,159.73,159.66,5.03177483]
[1762602410510,3.2,159.73,159.67,5.6395]
[1762602411308,3.23985359,159.72,159.68,0.04790963]
[1762602411710,3.2,159.71,159.68,0.04790963]
[1762602412410,0.03985359,159.72,159.68,3.04790963]
[1762602412810,0.03985359,159.72,159.7,5.6385]
[1762602413008,0.03985359,159.72,159.68,3.04790963]
[1762602413307,0.03985359,159.72,159.69,3.0]
[1762602413707,0.03985359,159.72,159.69,8.6389]
[1762602414009,0.03985359,159.72,159.7,5.03177483]
[1762602414410,0.03985359,159.72,159.7,10.67007483]
[1762602415199,0.03985359,159.72,159.71,3.0]
[1762602416100,0.03985359,159.72,159.7,2.03177483]
[1762602418405,0.03985359,159.72,159.7,7.67027483]
[1762602418814,0.03985359,159.72,159.7,10.67027483]
[1762602419816,0.03985359,159.72,159.71,3.0]
[1762602420217,3.2,159.79,159.71,3.0]
[1762602420416,3.2,159.79,159.72,3.0]
[1762602421115,0.04468032,159.77,159.72,3.0]
[1762602421311,0.04468032,159.77,159.74,3.18511749]
[1762602421513,3.02,159.76,159.74,0.04741651]
[1762602421915,3.02,159.74,159.64,3.14]
[1762602422115,3.02,159.71,159.64,3.14]
[1762602422414,3.02,159.71,159.64,8.7806]
[1762602422805,0.03984859,159.69,159.66,0.04625335]
[1762602423010,3.05984859,159.69,159.66,0.04625335]
[1762602426615,3.02,159.67,159.59,3.14]
[1762602427215,3.02,159.67,159.59,8.7824]
[1762602427620,3.06657931,159.65,159.61,0.04474993]
[1762602428213,8.70717931,159.65,159.61,0.04474993]
[1762602428414,3.02,159.64,159.61,0.04474993]
[1762602428719,3.02,159.63,159.61,0.04474993]
[1762602429317,3.02,159.61,159.54,3.14]
[1762602429710,3.02,159.59,159.54,3.14]
[1762602430114,5.05177483,159.62,159.54,3.14]
[1762602430320,0.04391247,159.6,159.57,3.14]
[1762602430516,0.04717004,159.6,159.57,3.14]
[1762602431419,0.04717004,159.6,159.59,3.14]
[1762602432015,3.02,159.66,159.59,3.14]
[1762602432914,0.04001563,159.64,159.61,0.0439058]
[1762602433311,3.06001563,159.64,159.61,0.0439058]